,Expense Area,Cost Centre,Expense Type,Account Code,Amount,Supplier Name,SupplierId,Pay Date,Transaction No.,,VAT No.,Co. Reg. No.,VAT No.,Voucher Type,�
INSERTED DETAIL,WSU Depot,WDP00,Personal Protective Clothing,340,1637.15,Arco Limited,100015,18/04/2024,10323933,TC,,133804,166911546,PI,1964.58
INSERTED DETAIL,Central Business Support Services,CSS15,Subscriptions,421,3148.99,LGC T/A Emap Communications Ltd,100093,18/04/2024,10324401,TC,,7880758,486400442,PI,3148.99
INSERTED DETAIL,Highways,HIG20,Materials,303,1682.64,Aggregate Industries UK Limited,100134,04/04/2024,10323546,TC,,,533260571,PN,2019.17
INSERTED DETAIL,Highways,HIG20,Materials,303,822.41,Aggregate Industries UK Limited,100134,04/04/2024,10323583,TC,,,533260571,PI,986.89
INSERTED DETAIL,Highways,HIG20,Materials,303,556.77,Aggregate Industries UK Limited,100134,11/04/2024,10323758,TC,,,533260571,PI,668.12
INSERTED DETAIL,Highways,HIG20,Materials,303,833.33,Aggregate Industries UK Limited,100134,18/04/2024,10323911,TC,,,533260571,PI,1000
INSERTED DETAIL,Highways,HIG20,Materials,303,731.44,Aggregate Industries UK Limited,100134,18/04/2024,10323969,TC,,,533260571,PI,877.73
INSERTED DETAIL,Highways,HIG20,Materials,303,1191.77,Aggregate Industries UK Limited,100134,18/04/2024,10324066,TC,,,533260571,PI,1430.12
INSERTED DETAIL,Council Tax and NNDR Collection,CTX01,External Legal Costs,741,375,Bristow & Sutor,100159,11/04/2024,10323865,TC,,1431688,294694111,PN,1912.28
INSERTED DETAIL,Council Tax and NNDR Collection,CTX01,External Legal Costs,741,507.68,Bristow & Sutor,100159,18/04/2024,10324210,TC,,1431688,294694111,PN,1128.56
INSERTED DETAIL,Council Tax and NNDR Collection,CTX01,External Legal Costs,741,28.77,Bristow & Sutor,100159,25/04/2024,10324323,TC,,1431688,294694111,PN,506.19
INSERTED DETAIL,WSU Depot,WDP00,Telephone Expenses,371,1005.68,British Telecommunications Plc,100161,25/04/2024,10324528,TC,,,245719348,PN,1206.82
INSERTED DETAIL,Grass Cutting- Parishes,PKS13,External Contractor & Operator,742,3130,Binley Woods Parish Council,100183,25/04/2024,10324659,NT,,,,PN,3130
INSERTED DETAIL,Garage,WVR00,Vehicle Repair and Maintenance,200,3248,Charles Watts Engineering Ltd,100302,18/04/2024,10324297,TC,,466266,272 7071 59,PN,3897.6
INSERTED DETAIL,Unplanned Maintenance and Repair,UMR00,External Contractor & Operator,742,431.4,Cwikskip (Tailby Brack Ltd),100325,18/04/2024,10324460,TC,,,565752315,PI,517.68
INSERTED DETAIL,Unplanned Maintenance and Repair,UMR00,Materials,303,938,Cwikskip (Tailby Brack Ltd),100325,25/04/2024,10324514,TC,,,565752315,PI,1125.6
INSERTED DETAIL,ITC & Support Services,CIS10,Photocopying,354,3742.35,Canon (UK) Limited,100514,04/04/2024,10323543,TC,,1264300,523797128,PN,4490.82
INSERTED DETAIL,ITC & Support Services,CIS10,Photocopying,354,1170.74,Canon (UK) Limited,100514,04/04/2024,10323650,TC,,1264300,523797128,PN,1404.89
INSERTED DETAIL,Garage,WVR00,Vehicle Repair and Maintenance,200,2252.54,Dennis Eagle Ltd,100559,04/04/2024,10323221,TC,,,272 4968 27,PI,2703.05
INSERTED DETAIL,Garage,WVR00,Vehicle Repair and Maintenance,200,1236.91,Dennis Eagle Ltd,100559,04/04/2024,10323417,TC,,,272 4968 27,PI,1484.29
INSERTED DETAIL,Garage,WVR00,Vehicle Repair and Maintenance,200,555.54,Dennis Eagle Ltd,100559,18/04/2024,10323912,TC,,,272 4968 27,PI,666.65
INSERTED DETAIL,Garage,WVR00,Vehicle Repair and Maintenance,200,3810,Fuchs Lubricants (UK) Plc,100832,04/04/2024,10323906,TC,,2412689,284166443,PI,4572
INSERTED DETAIL,Parks,PKS00,Maintenance of Equipment,301,806.8,GB Sport & Leisure UK Ltd,100920,18/04/2024,10324341,TC,,,634552540,PI,968.16
INSERTED DETAIL,Garage,WVR00,Vehicle Repair and Maintenance,200,730.1,John Astley & Sons Ltd,101167,18/04/2024,10324350,TC,,35885,272 3323 78,PI,876.12
INSERTED DETAIL,Parks,PKS00,R&M External Contractors,100,537.6,PJT Pumping Services,101438,18/04/2024,10324411,TC,,,618143943,PN,645.12
INSERTED DETAIL,"Communications, Consultation and Information Team",BTR20,Software/Equipment Licences,379,452.22,Phoenix Software Ltd,101450,04/04/2024,10323921,TC,,2548628,755 3490 15,PI,542.67
INSERTED DETAIL,ITC & Support Services,CIS10,Software/Equipment Licences,379,519.13,Phoenix Software Ltd,101450,11/04/2024,10323942,TC,,2548628,755 3490 15,PN,622.96
INSERTED DETAIL,ITC & Support Services,CIS10,Software/Equipment Licences,379,726.68,Phoenix Software Ltd,101450,25/04/2024,10324557,TC,,2548628,755 3490 15,PN,872.02
INSERTED DETAIL,Rough Sleeper Initiative,CAS10,Rent in Advance,137,2899.25,Rugby Borough Council,101516,11/04/2024,10323992,NT,,,,PN,2899.25
INSERTED DETAIL,Housing Advice & Benefits Team,CAS00,Postage & Distribution,370,74.8,Royal Mail,101554,11/04/2024,10323671,TC,,,,PN,4262.61
INSERTED DETAIL,Central Business Support Services,CSS15,Postage & Distribution,370,176.25,Royal Mail,101554,11/04/2024,10323671,TC,,,,PN,4262.61
INSERTED DETAIL,Council Tax and NNDR Collection,CTX01,Postage & Distribution,370,1125.63,Royal Mail,101554,11/04/2024,10323671,TC,,,,PN,4262.61
INSERTED DETAIL,Electoral Registration,ERG00,Postage & Distribution,370,5.32,Royal Mail,101554,11/04/2024,10323671,TC,,,,PN,4262.61
INSERTED DETAIL,Supervision and Management General,MAN00,Postage & Distribution,370,2105.98,Royal Mail,101554,11/04/2024,10323671,TC,,,,PN,4262.61
INSERTED DETAIL,Planning General/Income,PLN00,Postage & Distribution,370,57.12,Royal Mail,101554,11/04/2024,10323671,TC,,,,PN,4262.61
INSERTED DETAIL,Domestic Waste Collection/Recycling,REF00,Postage & Distribution,370,5.39,Royal Mail,101554,11/04/2024,10323671,TC,,,,PN,4262.61
INSERTED DETAIL,Visitor Centre,VSC00,Postage & Distribution,370,2.99,Royal Mail,101554,11/04/2024,10323671,TC,,,,PN,4262.61
INSERTED DETAIL,Building Control Services,BCS00,Postage & Distribution,370,2.09,Royal Mail,101554,11/04/2024,10323794,TC,,,,PN,1764.83
INSERTED DETAIL,Housing Advice & Benefits Team,CAS00,Postage & Distribution,370,74.57,Royal Mail,101554,11/04/2024,10323794,TC,,,,PN,1764.83
INSERTED DETAIL,Central Business Support Services,CSS15,Postage & Distribution,370,250.05,Royal Mail,101554,11/04/2024,10323794,TC,,,,PN,1764.83
INSERTED DETAIL,Council Tax and NNDR Collection,CTX01,Postage & Distribution,370,181.22,Royal Mail,101554,11/04/2024,10323794,TC,,,,PN,1764.83
INSERTED DETAIL,Electoral Registration,ERG00,Postage & Distribution,370,12.64,Royal Mail,101554,11/04/2024,10323794,TC,,,,PN,1764.83
INSERTED DETAIL,Supervision and Management General,MAN00,Postage & Distribution,370,825.46,Royal Mail,101554,11/04/2024,10323794,TC,,,,PN,1764.83
INSERTED DETAIL,Planning General/Income,PLN00,Postage & Distribution,370,116.28,Royal Mail,101554,11/04/2024,10323794,TC,,,,PN,1764.83
INSERTED DETAIL,Household Green Waste Collections,REF06,Postage & Distribution,370,8.2,Royal Mail,101554,11/04/2024,10323794,TC,,,,PN,1764.83
INSERTED DETAIL,Unplanned Maintenance and Repair,UMR00,Postage & Distribution,370,0.53,Royal Mail,101554,11/04/2024,10323794,TC,,,,PN,1764.83
INSERTED DETAIL,Housing Advice & Benefits Team,CAS00,Postage & Distribution,370,1317.08,Royal Mail,101554,11/04/2024,10323822,TC,,,,PN,20428.69
INSERTED DETAIL,Central Business Support Services,CSS15,Postage & Distribution,370,164.03,Royal Mail,101554,11/04/2024,10323822,TC,,,,PN,20428.69
INSERTED DETAIL,Council Tax and NNDR Collection,CTX01,Postage & Distribution,370,15386.37,Royal Mail,101554,11/04/2024,10323822,TC,,,,PN,20428.69
INSERTED DETAIL,Electoral Registration,ERG00,Postage & Distribution,370,11.12,Royal Mail,101554,11/04/2024,10323822,TC,,,,PN,20428.69
INSERTED DETAIL,Supervision and Management General,MAN00,Postage & Distribution,370,54.36,Royal Mail,101554,11/04/2024,10323822,TC,,,,PN,20428.69
INSERTED DETAIL,Planning General/Income,PLN00,Postage & Distribution,370,75.37,Royal Mail,101554,11/04/2024,10323822,TC,,,,PN,20428.69
INSERTED DETAIL,Domestic Waste Collection/Recycling,REF00,Postage & Distribution,370,11.15,Royal Mail,101554,11/04/2024,10323822,TC,,,,PN,20428.69
INSERTED DETAIL,Household Green Waste Collections,REF06,Postage & Distribution,370,4.78,Royal Mail,101554,11/04/2024,10323822,TC,,,,PN,20428.69
INSERTED DETAIL,Central Business Support Services,CSS15,Postage & Distribution,370,790,Royal Mail,101554,04/04/2024,10323864,TC,,,,PN,948
INSERTED DETAIL,Art Gallery and Museum,AGM00,Postage & Distribution,370,1.07,Royal Mail,101554,18/04/2024,10323961,TC,,,,PN,1171.62
INSERTED DETAIL,Building Control Services,BCS00,Postage & Distribution,370,1.07,Royal Mail,101554,18/04/2024,10323961,TC,,,,PN,1171.62
INSERTED DETAIL,Housing Advice & Benefits Team,CAS00,Postage & Distribution,370,71.44,Royal Mail,101554,18/04/2024,10323961,TC,,,,PN,1171.62
INSERTED DETAIL,Central Business Support Services,CSS15,Postage & Distribution,370,131.25,Royal Mail,101554,18/04/2024,10323961,TC,,,,PN,1171.62
INSERTED DETAIL,Council Tax and NNDR Collection,CTX01,Postage & Distribution,370,392.7,Royal Mail,101554,18/04/2024,10323961,TC,,,,PN,1171.62
INSERTED DETAIL,Electoral Registration,ERG00,Postage & Distribution,370,156.35,Royal Mail,101554,18/04/2024,10323961,TC,,,,PN,1171.62
INSERTED DETAIL,Supervision and Management General,MAN00,Postage & Distribution,370,81.03,Royal Mail,101554,18/04/2024,10323961,TC,,,,PN,1171.62
INSERTED DETAIL,Planning General/Income,PLN00,Postage & Distribution,370,137.7,Royal Mail,101554,18/04/2024,10323961,TC,,,,PN,1171.62
INSERTED DETAIL,Household Green Waste Collections,REF06,Postage & Distribution,370,4.28,Royal Mail,101554,18/04/2024,10323961,TC,,,,PN,1171.62
INSERTED DETAIL,Visitor Centre,VSC00,Postage & Distribution,370,1.2,Royal Mail,101554,18/04/2024,10323961,TC,,,,PN,1171.62
INSERTED DETAIL,Art Gallery and Museum,AGM00,Postage & Distribution,370,2.73,Royal Mail,101554,11/04/2024,10323962,TC,,,,PN,2681.82
INSERTED DETAIL,Building Control Services,BCS00,Postage & Distribution,370,3.77,Royal Mail,101554,11/04/2024,10323962,TC,,,,PN,2681.82
INSERTED DETAIL,Housing Advice & Benefits Team,CAS00,Postage & Distribution,370,126.34,Royal Mail,101554,11/04/2024,10323962,TC,,,,PN,2681.82
INSERTED DETAIL,Central Business Support Services,CSS15,Postage & Distribution,370,230.55,Royal Mail,101554,11/04/2024,10323962,TC,,,,PN,2681.82
INSERTED DETAIL,Council Tax and NNDR Collection,CTX01,Postage & Distribution,370,1581.28,Royal Mail,101554,11/04/2024,10323962,TC,,,,PN,2681.82
INSERTED DETAIL,Electoral Registration,ERG00,Postage & Distribution,370,23.32,Royal Mail,101554,11/04/2024,10323962,TC,,,,PN,2681.82
INSERTED DETAIL,Supervision and Management General,MAN00,Postage & Distribution,370,64.64,Royal Mail,101554,11/04/2024,10323962,TC,,,,PN,2681.82
INSERTED DETAIL,Planning General/Income,PLN00,Postage & Distribution,370,160.14,Royal Mail,101554,11/04/2024,10323962,TC,,,,PN,2681.82
INSERTED DETAIL,Domestic Waste Collection/Recycling,REF00,Postage & Distribution,370,39.6,Royal Mail,101554,11/04/2024,10323962,TC,,,,PN,2681.82
INSERTED DETAIL,Visitor Centre,VSC00,Postage & Distribution,370,2.99,Royal Mail,101554,11/04/2024,10323962,TC,,,,PN,2681.82
INSERTED DETAIL,Central Business Support Services,CSS15,Postage & Distribution,370,434.5,Royal Mail,101554,18/04/2024,10323999,TC,,,,PN,521.4
INSERTED DETAIL,Building Control Services,BCS00,Postage & Distribution,370,1.63,Royal Mail,101554,25/04/2024,10324367,TC,,,,PN,2834.13
INSERTED DETAIL,Housing Advice & Benefits Team,CAS00,Postage & Distribution,370,97.59,Royal Mail,101554,25/04/2024,10324367,TC,,,,PN,2834.13
INSERTED DETAIL,Central Business Support Services,CSS15,Postage & Distribution,370,1263.22,Royal Mail,101554,25/04/2024,10324367,TC,,,,PN,2834.13
INSERTED DETAIL,Council Tax and NNDR Collection,CTX01,Postage & Distribution,370,296.09,Royal Mail,101554,25/04/2024,10324367,TC,,,,PN,2834.13
INSERTED DETAIL,Electoral Registration,ERG00,Postage & Distribution,370,601.23,Royal Mail,101554,25/04/2024,10324367,TC,,,,PN,2834.13
INSERTED DETAIL,Supervision and Management General,MAN00,Postage & Distribution,370,53.24,Royal Mail,101554,25/04/2024,10324367,TC,,,,PN,2834.13
INSERTED DETAIL,Planning General/Income,PLN00,Postage & Distribution,370,50.61,Royal Mail,101554,25/04/2024,10324367,TC,,,,PN,2834.13
INSERTED DETAIL,Parks,PKS00,Maintenance of Equipment,301,624.86,Hags-smp Ltd,101562,18/04/2024,10324172,CS,,908021,GB207853851,PI,749.83
INSERTED DETAIL,Corporate Property Central Utilities,CPA02,Water Services,143,625.91,Water Plus,101610,04/04/2024,10323983,TC,,4141390,,PN,625.91
INSERTED DETAIL,Corporate Property Central Utilities,CPA02,Water Services,143,551.28,Water Plus,101610,04/04/2024,10323984,TC,,4141390,,PN,551.28
INSERTED DETAIL,Lesley Souter House AP,AGP16,Water Services,143,556.35,Water Plus,101610,04/04/2024,10323985,TC,,4141390,,PN,556.35
INSERTED DETAIL,WSU Depot,WDP00,Water Services,143,1251.82,Water Plus,101610,04/04/2024,10324008,TC,,4141390,,PN,1251.82
INSERTED DETAIL,WSU Depot,WDP00,Water Services,143,1701.82,Water Plus,101610,11/04/2024,10324226,TC,,4141390,,PN,1701.82
INSERTED DETAIL,Borough Elections,ELC00,New Equipment,300,1329,Shaw & Sons Ltd,101612,11/04/2024,10323908,TC,,176653,629353818,PI,1594.8
INSERTED DETAIL,Grass Cutting- Parishes,PKS13,External Contractor & Operator,742,511,Thurlaston Parish Council,101726,25/04/2024,10324536,NT,,,,PN,511
INSERTED DETAIL,Parks,PKS00,External Contractor & Operator,742,511,Thurlaston Parish Council,101726,25/04/2024,10324683,NT,,,,PN,511
INSERTED DETAIL,Garage,WVR00,Vehicle Repair and Maintenance,200,1220.1,Terberg Matec UK,101761,04/04/2024,10323348,TC,,,560 8785 10,PI,1464.12
INSERTED DETAIL,Garage,WVR00,Vehicle Repair and Maintenance,200,1290.66,Terberg Matec UK,101761,11/04/2024,10324228,TC,,,560 8785 10,PN,1548.79
INSERTED DETAIL,Parks,PKS00,External Contractor & Operator,742,639,Willoughby Parish Council,101848,25/04/2024,10324523,NT,,,,PN,639
INSERTED DETAIL,Section 106 Grounds Maintenance,PKS16,External Contractor & Operator,742,9803.73,Warwickshire Wildlife Trust,101860,04/04/2024,10323967,TC,,585247,670318740,PI,11764.48
INSERTED DETAIL,Balance Sheet,BS,Section Agreements,9865,648167.18,Warwickshire Police & Crime Commissioner,101869,11/04/2024,10323786,TC,,,655328230,PN,648167.18
INSERTED DETAIL,Executive Director,SMT00,Consultancy Costs,740,1425,West Midlands Employers,101880,11/04/2024,10324059,TC,,,GB729635111,PI,1710
INSERTED DETAIL,Human Resources Centralised Services,RES31,Subscriptions,421,1876,West Midlands Employers,101880,25/04/2024,10324644,TC,,,GB729635111,PI,2251.2
INSERTED DETAIL,Parks,PKS00,R&M External Contractors,100,8961.51,Warwickshire County Council,101893,04/04/2024,10323710,TC,,,272426659,PI,10753.81
INSERTED DETAIL,UKSPF Revenue- Small Business Support,UKA09,Payments to Other Local Authorities,710,128008,Warwickshire County Council,101893,11/04/2024,10323732,TC,,,272426659,PI,128008
INSERTED DETAIL,Rainsbook Cemetery preparation,BUR06,Capital Contract Payments,5000,500,Warwickshire County Council,101893,11/04/2024,10323763,TC,,,272426659,PI,600
INSERTED DETAIL,Trade Waste Collection,WWC01,Removal of Waste - WCC,711,137880.76,Warwickshire County Council,101893,11/04/2024,10323886,TC,,,272426659,PI,137880.76
INSERTED DETAIL,Street Furniture,HIG01,R&M External Contractors,100,210,Warwickshire County Council,101893,11/04/2024,10323889,TC,,,272426659,PI,14782.8
INSERTED DETAIL,Maintenance of Open Spaces,MOS00,R&M External Contractors,100,2626,Warwickshire County Council,101893,11/04/2024,10323889,TC,,,272426659,PI,14782.8
INSERTED DETAIL,Parks,PKS00,R&M External Contractors,100,7123,Warwickshire County Council,101893,11/04/2024,10323889,TC,,,272426659,PI,14782.8
INSERTED DETAIL,Section 106 Grounds Maintenance,PKS16,External Contractor & Operator,742,2360,Warwickshire County Council,101893,11/04/2024,10323889,TC,,,272426659,PI,14782.8
INSERTED DETAIL,Parks,PKS00,R&M External Contractors,100,1760,Warwickshire County Council,101893,18/04/2024,10323899,TC,,,272426659,PI,2112
INSERTED DETAIL,Car Parks General,CPK01,Signage,151,12739.3,Warwickshire County Council,101893,18/04/2024,10323979,TC,,,272426659,PI,12739.3
INSERTED DETAIL,Trade Waste Collection,WWC01,Removal of Waste - WCC,711,145993.57,Warwickshire County Council,101893,18/04/2024,10324009,TC,,,272426659,PI,145993.57
INSERTED DETAIL,UKSPF Capital - Bandstand Works,UKC07,Payments to Other Local Authorities,710,6000,Warwickshire County Council,101893,04/04/2024,10324011,TC,,,272426659,PI,6000
INSERTED DETAIL,Human Resources Centralised Services,RES31,Training fees,11,1650,Warwickshire County Council,101893,25/04/2024,10324589,TC,,,272426659,PI,1650
INSERTED DETAIL,Alwyn Road Changing Rooms,LEI36,Capital Contract Payments,5000,1875,H B Architects,107306,04/04/2024,10323702,TC,,2172083,272379439,PI,2250
INSERTED DETAIL,Grounds Maintenance,PKS20,Contract Hire,220,735.43,TJS Self Drive Rugby,107992,18/04/2024,10324263,TC,,1364047,316915651,PN,882.52
INSERTED DETAIL,Grounds Maintenance,PKS20,Contract Hire,220,480.86,TJS Self Drive Rugby,107992,18/04/2024,10324264,TC,,1364047,316915651,PN,577.03
INSERTED DETAIL,Financial Services,RES10,Payments to Other Local Authorities,710,39254.31,Nuneaton & Bedworth Borough Council,108060,18/04/2024,10323686,TC,,,115336790,PI,39254.31
INSERTED DETAIL,Planning General/Income,PLN00,Training fees,11,1000,Nuneaton & Bedworth Borough Council,108060,18/04/2024,10323974,TC,,,115336790,PI,1000
INSERTED DETAIL,ITC & Support Services,CIS10,Payments to Other Local Authorities,710,18500,Nuneaton & Bedworth Borough Council,108060,18/04/2024,10324407,TC,,,115336790,PN,22200
INSERTED DETAIL,Street Cleansing General,STC00,Vehicle Repair and Maintenance,200,977.53,Scarab Sweepers Ltd,108252,04/04/2024,10323361,TC,,1823459,374500268,PI,1173.04
INSERTED DETAIL,Street Cleansing General,STC00,Vehicle Repair and Maintenance,200,686.78,Scarab Sweepers Ltd,108252,18/04/2024,10324358,TC,,1823459,374500268,PI,824.14
INSERTED DETAIL,Crematorium,CRM00,Medical Referees Fees,413,2016.5,Dunchurch Surgery,108687,11/04/2024,10323473,TC,,,,PI,2016.5
INSERTED DETAIL,Crematorium,CRM00,Medical Referees Fees,413,1517,Dunchurch Surgery,108687,11/04/2024,10324043,TC,,,,PI,1517
INSERTED DETAIL,Street Cleansing General,STC00,External Contractor & Operator,742,1847.29,Citron Hygiene UK Ltd,110029,04/04/2024,10323347,TC,,2672361,485679480,PI,2216.75
INSERTED DETAIL,Crematorium,CRM00,Purchases for Resale,305,500,P D Timms,111508,04/04/2024,10324025,TC,,,420836274,PI,600
INSERTED DETAIL,Crematorium,CRM00,Purchases for Resale,305,500,P D Timms,111508,04/04/2024,10324026,TC,,,420836274,PI,600
INSERTED DETAIL,Crematorium,CRM00,Purchases for Resale,305,500,P D Timms,111508,04/04/2024,10324027,TC,,,420836274,PI,600
INSERTED DETAIL,Crematorium,CRM00,Purchases for Resale,305,500,P D Timms,111508,11/04/2024,10324028,TC,,,420836274,PI,600
INSERTED DETAIL,Crematorium,CRM00,Purchases for Resale,305,500,P D Timms,111508,11/04/2024,10324030,TC,,,420836274,PI,600
INSERTED DETAIL,Crematorium,CRM00,Purchases for Resale,305,500,P D Timms,111508,04/04/2024,10324031,TC,,,420836274,PI,600
INSERTED DETAIL,Crematorium,CRM00,Purchases for Resale,305,500,P D Timms,111508,04/04/2024,10324032,TC,,,420836274,PI,600
INSERTED DETAIL,Crematorium,CRM00,Purchases for Resale,305,500,P D Timms,111508,04/04/2024,10324076,TC,,,420836274,PI,600
INSERTED DETAIL,Crematorium,CRM00,Purchases for Resale,305,597,P D Timms,111508,11/04/2024,10324184,TC,,,420836274,PI,716.4
INSERTED DETAIL,Council Tax and NNDR Collection,CTX01,Agency Staff,3,979.68,Civica UK Ltd,112724,11/04/2024,10323762,TC,,1628868,391171065,PI,1175.62
INSERTED DETAIL,Housing Management System,HCE08,IT Capital Expenditure,5025,40022.85,Civica UK Ltd,112724,25/04/2024,10324119,TC,,1628868,391171065,PI,48027.42
INSERTED DETAIL,Civic Responsibilities,CIV00,Other Miscellaneous Expenses,444,1150.14,Thomas Fattorini Ltd,112742,25/04/2024,10324513,TC,,153351,343412878,PI,1380.17
INSERTED DETAIL,Grounds Maintenance,PKS20,Vehicle Repair and Maintenance,200,1006.14,George Browns Ltd,112870,04/04/2024,10323690,TC,,340609,196299993,PI,1207.36
INSERTED DETAIL,Visitor Centre,VSC00,Events Tickets - Zero Rated,1405,666.9,Catteralls Coach and Travel Services,113835,11/04/2024,10324209,TC,,1698062,3760050457,PN,666.9
INSERTED DETAIL,AGM Education,AGM03,External Contractor & Operator,742,613.74,Birmingham City University,117847,25/04/2024,10324075,TC,,,614117673,PI,613.74
INSERTED DETAIL,UKSPF Revenue- Sports Grants,UKA08,Grants to Individuals,721,1000,RSDA,118325,11/04/2024,10324135,GC,,,,PN,1000
INSERTED DETAIL,Unplanned Maintenance and Repair,UMR00,Vehicle Repair and Maintenance,200,100,Prestige Body Repairs (Rugby) Ltd.,118544,04/04/2024,10323826,TC,,,623865721,PI,942.04
INSERTED DETAIL,Human Resources Centralised Services,RES31,Training fees,11,1559.27,Nelson Training,120218,04/04/2024,10324045,TC,,,781446904,PI,1871.12
INSERTED DETAIL,Human Resources Centralised Services,RES31,Training fees,11,1559.27,Nelson Training,120218,18/04/2024,10324423,TC,,,781446904,PI,1871.12
INSERTED DETAIL,Biart Place - Capital,BIA00,Capital Contract Payments,5000,5709.71,Michael Dyson Associates,121502,18/04/2024,10324227,TC,,2903668,567278204,PI,6851.65
INSERTED DETAIL,Maintenance of Customer Services Systems,CIS21,Software Maintenance,374,1007.96,NEC Software Solutions UK Ltd,121606,18/04/2024,10323209,TC,,968498,207588545,PI,1209.55
INSERTED DETAIL,Maintenance of Customer Services Systems,CIS21,Software Maintenance,374,1374.1,NEC Software Solutions UK Ltd,121606,18/04/2024,10323922,TC,,968498,207588545,PI,1648.92
INSERTED DETAIL,Maintenance of Customer Services Systems,CIS21,Software Maintenance,374,11111.7,Ideagen Gael Ltd,122520,18/04/2024,10323947,TC,,SC208191,886684845,PN,13334.04
INSERTED DETAIL,Purchase of Waste Bins,PWB00,Capital Contract Payments,5000,21235.2,SSI Schaefer Plastic UK Ltd,123543,04/04/2024,10323610,TC,,,,PI,25482.24
INSERTED DETAIL,Economic Development & Town Centre,EDT00,Consultancy Costs,740,5940,Lambert Smith Hampton,123593,11/04/2024,10323781,TC,,2521225,500248105,PI,7128
INSERTED DETAIL,ICT Renewal Programme,CMP00,IT Capital Expenditure,5025,8694.6,Dell Corporation Ltd,124218,04/04/2024,10323611,TC,,2081369,635 8235 28,PI,10433.52
INSERTED DETAIL,ICT Renewal Programme,CMP00,IT Capital Expenditure,5025,12994,Dell Corporation Ltd,124218,04/04/2024,10323612,TC,,2081369,635 8235 28,PI,15592.8
INSERTED DETAIL,Garage,WVR00,Vehicle Fuel,204,432.55,Shell U.K. Oil Products Limited,125672,04/04/2024,10323701,TC,,,235 763 255,PI,519.06
INSERTED DETAIL,Supervision and Management General,MAN00,Asset Management Expenses,448,600,George and Company (Surveyors) Ltd,126668,04/04/2024,10324013,TC,,,984706870,PI,720
INSERTED DETAIL,Supervision and Management General,MAN00,Asset Management Expenses,448,425,George and Company (Surveyors) Ltd,126668,04/04/2024,10324051,TC,,,984706870,PI,510
INSERTED DETAIL,Supervision and Management General,MAN00,Asset Management Expenses,448,425,George and Company (Surveyors) Ltd,126668,04/04/2024,10324053,TC,,,984706870,PI,510
INSERTED DETAIL,Supervision and Management General,MAN00,Asset Management Expenses,448,425,George and Company (Surveyors) Ltd,126668,04/04/2024,10324054,TC,,,984706870,PI,510
INSERTED DETAIL,Supervision and Management General,MAN00,Asset Management Expenses,448,425,George and Company (Surveyors) Ltd,126668,04/04/2024,10324055,TC,,,984706870,PI,510
INSERTED DETAIL,WSU Depot,WDP00,Materials,303,1714,Get it Sorted Limited,129426,04/04/2024,10323930,TC,,,,PI,2056.8
INSERTED DETAIL,Central Business Support Services,CSS15,Hospitality,331,61.37,Lyreco,129956,25/04/2024,10324303,TC,,442696,927265703,PN,538.59
INSERTED DETAIL,Central Business Support Services,CSS15,Stationery Supplies,350,204.08,Lyreco,129956,25/04/2024,10324303,TC,,442696,927265703,PN,538.59
INSERTED DETAIL,Fire Risk Prevention Works,HCE18,Stationery Supplies,350,193.6,Lyreco,129956,25/04/2024,10324303,TC,,442696,927265703,PN,538.59
INSERTED DETAIL,Car Parks General,CPK01,Cash Collection,744,1384,Jade Security Services Ltd,131711,18/04/2024,10324322,TC,,,642505654,PI,1660.8
INSERTED DETAIL,Town Centre CCTV and Management,TVM00,Other Agencies,734,77074.96,Rugby First Ltd - BID,133176,25/04/2024,10324516,TC,,,874675571,PI,92489.95
INSERTED DETAIL,Town Centre Events,TWE00,Development Activities,450,5000,Rugby First Ltd - BID,133176,25/04/2024,10324517,TC,,,874675571,PI,6000
INSERTED DETAIL,Car Parks General,CPK01,External Contractor & Operator,742,1709.89,Chipside Limited,133289,04/04/2024,10323955,TC,,4049461,812080569,PN,2051.87
INSERTED DETAIL,Car Parks General,CPK01,External Contractor & Operator,742,1715,Chipside Limited,133289,04/04/2024,10323956,TC,,4049461,812080569,PN,2058
INSERTED DETAIL,Cemeteries General,CEM00,Subscriptions,421,76,The Federation of Burial and Cremation Authorities,137587,04/04/2024,10323759,TC,,,,PI,1334.8
INSERTED DETAIL,Crematorium,CRM00,Subscriptions,421,1049,The Federation of Burial and Cremation Authorities,137587,04/04/2024,10323759,TC,,,,PI,1334.8
INSERTED DETAIL,Art Gallery and Museum,AGM00,Other Miscellaneous Expenses,444,1420,Meaco Measurement and Control Ltd,138998,04/04/2024,10323548,TC,,6571701,866 6015 09,PN,1704
INSERTED DETAIL,Grounds Maintenance,PKS20,External Contractor & Operator,742,895,D J Whitlock Plant Hire,140156,11/04/2024,10324070,CS,,,833940226,PI,1074
INSERTED DETAIL,Section 106 Grounds Maintenance,PKS16,External Contractor & Operator,742,1370,D J Whitlock Plant Hire,140156,11/04/2024,10324079,CS,,,833940226,PI,1644
INSERTED DETAIL,Parks,PKS00,External Contractor & Operator,742,3050,D J Whitlock Plant Hire,140156,11/04/2024,10324140,CS,,,833940226,PI,3660
INSERTED DETAIL,Garage,WVR00,Vehicle Repair and Maintenance,200,738.27,Midlands Truck & Van Ltd,140322,11/04/2024,10323790,TC,,7492514,243 6111 93,PN,885.92
INSERTED DETAIL,Human Resources Centralised Services,RES31,Software/Equipment Licences,379,839.7,MHR International UK Ltd,140463,25/04/2024,10324642,TC,,1852206,705850636,PI,1007.64
INSERTED DETAIL,Crematorium,CRM00,External Contractor & Operator,742,430,StoneWall Security Ltd,140775,18/04/2024,10324420,TC,,6587546,937387578,PI,516
INSERTED DETAIL,Safer Streets,SAF00,Capital Contract Payments,5000,109986.92,Synectics Security  Limited,141441,25/04/2024,10324012,TC,,5831231,417069846,PI,131984.3
INSERTED DETAIL,Rounds Gardens Capital,RGS00,Capital Contract Payments,5000,2000,Knight Frank LLP,141633,04/04/2024,10324050,TC,,OC305934,238 5156 53,PI,2400
INSERTED DETAIL,Unplanned Maintenance and Repair,UMR00,Agency Staff,3,741.02,Comensura Limited,142471,11/04/2024,10323785,TC,,4085767,755 3211 45,PN,889.22
INSERTED DETAIL,Parks,PKS00,Subscriptions,421,450,Healthmatic Limited,143256,18/04/2024,10324340,CS,,2065014,442 5581 51,PI,540
INSERTED DETAIL,Parks,PKS00,Maintenance of Equipment,301,1421,Dura Sport (Leisure Care) Ltd,143619,25/04/2024,10324336,TC,,,747674291,PI,1705.2
INSERTED DETAIL,CL Grants,CGS00,Grants To Voluntary Organisations,720,9900,WCAVA,145040,11/04/2024,10324202,TC,,,,PN,11880
INSERTED DETAIL,Domestic Waste Collection/Recycling,REF00,Training fees,11,751,Keith Cook Training Services,145120,04/04/2024,10323212,TC,,7059714,706 1877 30,PI,901.2
INSERTED DETAIL,CAST - Private Sector Leasing,CAS03,Private Sector Leasing Scheme Properties,148,2250,Zulfiqar Ali & Mrs Abida Sultana Ali,145121,04/04/2024,10323839,TC,,,,PN,2250
INSERTED DETAIL,General Financial Services,GFS00,Subscriptions,421,2700,PSTAX,145204,18/04/2024,10324361,TC,,4810070,815158828,PI,3240
INSERTED DETAIL,Garage,WVR00,Vehicle Repair and Maintenance,200,422.45,Midland Vehicle Components Ltd,146025,04/04/2024,10323495,TC,,,,PI,506.94
INSERTED DETAIL,Alfred Green Close AP,AGP01,Gas,131,285.92,Total Gas & Power Ltd,146631,11/04/2024,10324146,TC,,2172239,689638949,PN,67599.03
INSERTED DETAIL,Avon Court AP,AGP02,Gas,131,224.59,Total Gas & Power Ltd,146631,11/04/2024,10324146,TC,,2172239,689638949,PN,67599.03
INSERTED DETAIL,Dickinson Court AP,AGP03,Gas,131,1273.79,Total Gas & Power Ltd,146631,11/04/2024,10324146,TC,,2172239,689638949,PN,67599.03
INSERTED DETAIL,Duffy Place AP,AGP04,Gas,131,54,Total Gas & Power Ltd,146631,11/04/2024,10324146,TC,,2172239,689638949,PN,67599.03
INSERTED DETAIL,Frederick Press Way AP,AGP06,Gas,131,656.19,Total Gas & Power Ltd,146631,11/04/2024,10324146,TC,,2172239,689638949,PN,67599.03
INSERTED DETAIL,John Thwaites Close AP,AGP08,Gas,131,484.48,Total Gas & Power Ltd,146631,11/04/2024,10324146,TC,,2172239,689638949,PN,67599.03
INSERTED DETAIL,Mercer Court AP,AGP09,Gas,131,233.22,Total Gas & Power Ltd,146631,11/04/2024,10324146,TC,,2172239,689638949,PN,67599.03
INSERTED DETAIL,Pettiver Crescent I AP,AGP10,Gas,131,370.02,Total Gas & Power Ltd,146631,11/04/2024,10324146,TC,,2172239,689638949,PN,67599.03
INSERTED DETAIL,Robotham Close AP,AGP11,Gas,131,381.81,Total Gas & Power Ltd,146631,11/04/2024,10324146,TC,,2172239,689638949,PN,67599.03
INSERTED DETAIL,Stacey Court AP,AGP12,Gas,131,403.68,Total Gas & Power Ltd,146631,11/04/2024,10324146,TC,,2172239,689638949,PN,67599.03
INSERTED DETAIL,Stretton Court AP,AGP13,Gas,131,297.97,Total Gas & Power Ltd,146631,11/04/2024,10324146,TC,,2172239,689638949,PN,67599.03
INSERTED DETAIL,Lesley Souter House AP,AGP16,Gas,131,3790.77,Total Gas & Power Ltd,146631,11/04/2024,10324146,TC,,2172239,689638949,PN,67599.03
INSERTED DETAIL,Tanser Court AP,AGP17,Gas,131,5080.81,Total Gas & Power Ltd,146631,11/04/2024,10324146,TC,,2172239,689638949,PN,67599.03
INSERTED DETAIL,Albert Square AP,AGP20,Gas,131,5282.11,Total Gas & Power Ltd,146631,11/04/2024,10324146,TC,,2172239,689638949,PN,67599.03
INSERTED DETAIL,Eliot Court AP,AGP25,Gas,131,312.9,Total Gas & Power Ltd,146631,11/04/2024,10324146,TC,,2172239,689638949,PN,67599.03
INSERTED DETAIL,Hirst Close AP,AGP33,Gas,131,313.8,Total Gas & Power Ltd,146631,11/04/2024,10324146,TC,,2172239,689638949,PN,67599.03
INSERTED DETAIL,Harold Cox Place AP,AGP51,Gas,131,40.6,Total Gas & Power Ltd,146631,11/04/2024,10324146,TC,,2172239,689638949,PN,67599.03
INSERTED DETAIL,CAST - Private Sector Leasing,CAS03,Gas,131,2300.46,Total Gas & Power Ltd,146631,11/04/2024,10324146,TC,,2172239,689638949,PN,67599.03
INSERTED DETAIL,Corporate Property Central Utilities,CPA02,Gas,131,27115.11,Total Gas & Power Ltd,146631,11/04/2024,10324146,TC,,2172239,689638949,PN,67599.03
INSERTED DETAIL,Crematorium,CRM00,Gas,131,7938.63,Total Gas & Power Ltd,146631,11/04/2024,10324146,TC,,2172239,689638949,PN,67599.03
INSERTED DETAIL,Unplanned Maintenance and Repair,UMR00,Gas,131,102.08,Total Gas & Power Ltd,146631,11/04/2024,10324146,TC,,2172239,689638949,PN,67599.03
INSERTED DETAIL,WSU Depot,WDP00,Maintenance of Equipment,301,1956.05,Weightron Bilanciai Limited,146759,04/04/2024,10323263,TC,,,458223052,PI,2347.26
INSERTED DETAIL,Alwyn Road Changing Rooms,LEI36,Capital Contract Payments,5000,2475,Environmental Essentials Ltd,146842,25/04/2024,10324515,TC,,5097507,844887474,PI,2970
INSERTED DETAIL,Alwyn Road Changing Rooms,LEI36,Capital Contract Payments,5000,-500,Environmental Essentials Ltd,146842,25/04/2024,10324520,TC,,5097507,844887474,PN,-600
INSERTED DETAIL,Retired Employees,RET00,Additional Pension Payments,14,7631.51,WCC Pension Fund,146914,04/04/2024,10323909,NT,,,,PI,7631.51
INSERTED DETAIL,Retired Employees,RET00,Additional Pension Payments,14,7607.34,WCC Pension Fund,146914,04/04/2024,10323910,NT,,,,PI,7607.34
INSERTED DETAIL,The Benn Hall,BHL00,Publicity & Marketing,377,465,Skyward Graphics Limited,147050,25/04/2024,10324511,TC,,7260705,990 7772 68,PI,558
INSERTED DETAIL,"Communications, Consultation and Information Team",BTR20,Publicity & Marketing,377,960.95,One Stop Promotions Ltd,147436,04/04/2024,10323973,TC,,5325357,568052528,PI,1153.14
INSERTED DETAIL,Visitor Centre,VSC00,Purchases for Resale,305,845.16,Star Editions Ltd,147676,04/04/2024,10323931,TC,,6628133,922794209,PI,1014.18
INSERTED DETAIL,Grounds Maintenance,PKS20,Vehicle Repair and Maintenance,200,448.76,Tallis Amos Group Limited,147758,11/04/2024,10324126,TC,,,377274127,PI,538.52
INSERTED DETAIL,The Benn Hall,BHL00,External Legal Costs,741,1241.63,PPL PRS,147770,04/04/2024,10323558,TC,,,,PI,1489.95
INSERTED DETAIL,ITC & Support Services,CIS10,Consultancy Costs,740,2000,Probrand Limited,148276,25/04/2024,10324602,TC,,2653446,580401565,PI,2400
INSERTED DETAIL,WSU Depot,WDP00,External Contractor & Operator,742,1140,Suckcess,148285,25/04/2024,10324509,TC,,5307110,799610868,PI,1368
INSERTED DETAIL,Section 106 Grounds Maintenance,PKS16,External Contractor & Operator,742,1708,J P Landscapes & Construction Ltd,148502,11/04/2024,10324015,CS,,4840565,844 2378 18,PI,2049.6
INSERTED DETAIL,Democratic Services,DEM10,External Legal Costs,741,517.5,Bevan Brittan LLP,148661,25/04/2024,10324154,TC,,OC309219,840723148,PN,621
INSERTED DETAIL,Human Resources Centralised Services,RES31,Training fees,11,600,Up Front Training & Coaching,148954,25/04/2024,10324518,TC,,,,PI,600
INSERTED DETAIL,The Benn Hall,BHL00,Purchases for Resale,305,515.27,Brakes,148974,04/04/2024,10323563,TC,,2035315,202935388,PI,602.94
INSERTED DETAIL,The Benn Hall,BHL00,Purchases for Resale,305,579.38,Brakes,148974,11/04/2024,10323827,TC,,2035315,202935388,PI,692.43
INSERTED DETAIL,Garage,WVR00,Materials,303,1127.85,Grenke Leasing Ltd,149293,18/04/2024,10324453,TC,,4539806,803892226,PI,1353.42
INSERTED DETAIL,Garage,WVR00,Materials,303,990.93,Grenke Leasing Ltd,149293,18/04/2024,10324455,TC,,4539806,803892226,PI,1189.12
INSERTED DETAIL,Garage,WVR00,Materials,303,931.75,Tom Tom International BV T/A Webfleet,149311,04/04/2024,10323333,TC,,FC031857,273433560,PI,1118.09
INSERTED DETAIL,Garage,WVR00,Materials,303,931.75,Tom Tom International BV T/A Webfleet,149311,11/04/2024,10324039,TC,,FC031857,273433560,PI,1118.09
INSERTED DETAIL,Crematorium,CRM00,Software Maintenance,374,560,Scribes Plus Ltd,149352,18/04/2024,10324383,TC,,5838911,887285660,PI,672
INSERTED DETAIL,WSU Depot,WDP00,Maintenance of Equipment,301,737.7,Stertil UK Limited,149430,25/04/2024,10324600,TC,,1103855,223567566,PI,885.24
INSERTED DETAIL,UKSPF Capital - Albert Street Hoarding,UKC11,Capital Contract Payments,5000,6299.08,Personal Redacted Data,149440,25/04/2024,10324505,NT,,,,PI,6299.08
INSERTED DETAIL,Crematorium,CRM00,Purchases for Resale,305,3453,Vivedia Ltd,149624,18/04/2024,10323738,TC,,,8830029332,PI,4143.6
INSERTED DETAIL,Council Tax and NNDR Collection,CTX01,Other,763,450,Inform CPI Ltd,149953,11/04/2024,10323929,TC,,5599551,880928388,PI,540
INSERTED DETAIL,Garage,WVR00,Vehicle Repair and Maintenance,200,79,Fleetview Solutions Ltd,150000,04/04/2024,10323334,TC,,,869823662,PI,628.8
INSERTED DETAIL,Garage,WVR00,New Equipment,300,445,Fleetview Solutions Ltd,150000,04/04/2024,10323334,TC,,,869823662,PI,628.8
INSERTED DETAIL,Crematorium,CRM00,Purchases for Resale,305,575.01,Ashes into Glass,150100,04/04/2024,10324080,TC,,3389725,805578513,PI,690.01
INSERTED DETAIL,Legal Services,DEM20,Agency Staff,3,2464.25,Sellick Partnership Ltd,150142,11/04/2024,10323724,TC,,4156002,864288095,PI,2957.1
INSERTED DETAIL,Legal Services,DEM20,Agency Staff,3,2659.82,Sellick Partnership Ltd,150142,11/04/2024,10323727,TC,,4156002,864288095,PI,3191.78
INSERTED DETAIL,Legal Services,DEM20,Agency Staff,3,3246.55,Sellick Partnership Ltd,150142,11/04/2024,10323729,TC,,4156002,864288095,PI,3895.86
INSERTED DETAIL,Legal Services,DEM20,Agency Staff,3,2933.63,Sellick Partnership Ltd,150142,11/04/2024,10324127,TC,,4156002,864288095,PI,3520.36
INSERTED DETAIL,Legal Services,DEM20,Agency Staff,3,1552.5,Sellick Partnership Ltd,150142,25/04/2024,10324542,TC,,4156002,864288095,PN,1863
INSERTED DETAIL,Legal Services,DEM20,Agency Staff,3,1620,Sellick Partnership Ltd,150142,25/04/2024,10324543,TC,,4156002,864288095,PN,1944
INSERTED DETAIL,Legal Services,DEM20,Agency Staff,3,3168.32,Sellick Partnership Ltd,150142,25/04/2024,10324545,TC,,4156002,864288095,PN,3801.98
INSERTED DETAIL,Legal Services,DEM20,Agency Staff,3,1653.75,Sellick Partnership Ltd,150142,25/04/2024,10324681,TC,,4156002,864288095,PN,1984.5
INSERTED DETAIL,Grounds Maintenance,PKS20,Materials,303,1020.86,Northern Lubricants and Services Ltd,150350,11/04/2024,10323054,TC,,9929234,235177116,PI,1225.03
INSERTED DETAIL,The Benn Hall,BHL00,Events Tickets - Zero Rated,1405,14001.38,Five Star Theatre,150387,25/04/2024,10324660,TC,,,,PN,14001.38
INSERTED DETAIL,Supervision and Management General,MAN00,Premises Related Insurance Premiums,180,858.41,Arthur J Gallagher T/A Heath Lambert Ltd Client Money,150527,04/04/2024,10323169,TC,,1199129,48474629,PN,10231.37
INSERTED DETAIL,House Purchase and Improvement Loans,HPL00,Other Insurance Premiums,440,1399.65,Arthur J Gallagher T/A Heath Lambert Ltd Client Money,150527,04/04/2024,10323169,TC,,1199129,48474629,PN,10231.37
INSERTED DETAIL,Supervision and Management General,MAN00,Reimbursements - Outside Scope,1107,7973.31,Arthur J Gallagher T/A Heath Lambert Ltd Client Money,150527,04/04/2024,10323169,TC,,1199129,48474629,PN,10231.37
INSERTED DETAIL,Section 106 Grounds Maintenance,PKS16,External Contractor & Operator,742,1708.4,Jupiter Play & Leisure Ltd,150634,04/04/2024,10324010,CS,,SC200761,743092442,PI,2050.08
INSERTED DETAIL,Broadband & internet,TEL01,Software Maintenance,374,1936.59,Exchange Communications,151167,11/04/2024,10323694,TC,,SC499057,208391707,PN,2323.91
INSERTED DETAIL,CAST - Private Sector Leasing,CAS03,Private Sector Leasing Scheme Properties,148,1193,Hedderwick Family LLP,151176,04/04/2024,10323835,TC,,,,PN,1193
INSERTED DETAIL,CAST - Private Sector Leasing,CAS03,Private Sector Leasing Scheme Properties,148,1935,Hedderwick Family LLP,151176,11/04/2024,10324198,TC,,,,PN,1935
INSERTED DETAIL,Maintenance of Customer Services Systems,CIS21,Software Maintenance,374,2041.26,Sports Booker Ltd,151186,11/04/2024,10324133,TC,,11735116,314845503,PN,2449.51
INSERTED DETAIL,Crime and Disorder Activities,CAD00,Development Activities,450,6783,Elite Workwear Ltd,151203,11/04/2024,10324048,TC,,6213687,945665190,PI,8139.6
INSERTED DETAIL,CAST - Private Sector Leasing,CAS03,Private Sector Leasing Scheme Properties,148,1485,Mr P & Mrs C Hemsley,151216,25/04/2024,10324410,TC,,,,PN,1485
INSERTED DETAIL,CAST - Private Sector Leasing,CAS03,Private Sector Leasing Scheme Properties,148,1560,Mr P & Mrs C Hemsley,151216,25/04/2024,10324468,TC,,,,PN,1560
INSERTED DETAIL,Electoral Registration,ERG00,External Printing,352,1150.81,CFH Docmail Ltd,151481,25/04/2024,10324327,TC,,1716891,720978223,PI,1380.97
INSERTED DETAIL,Borough Elections,ELC00,External Printing,352,2424.75,CFH Docmail Ltd,151481,25/04/2024,10324434,TC,,1716891,720978223,PI,5819.39
INSERTED DETAIL,Police & Crime Commissioner Elections,ELC05,External Printing,352,2424.74,CFH Docmail Ltd,151481,25/04/2024,10324434,TC,,1716891,720978223,PI,5819.39
INSERTED DETAIL,The Benn Hall,BHL00,New Equipment,300,2000,Outset Production Services Ltd,151499,18/04/2024,10324392,TC,,,,PI,2400
INSERTED DETAIL,The Benn Hall,BHL00,R&M External Contractors,100,600,Outset Production Services Ltd,151499,18/04/2024,10324399,TC,,,,PI,720
INSERTED DETAIL,Broadband & internet,TEL01,Telephone Expenses,371,666.66,HighSpeed Office Ltd,151543,18/04/2024,10324301,TC,,3935705,766384980,PN,799.99
INSERTED DETAIL,Borough Elections,ELC00,New Equipment,300,1136.45,Versapak International Ltd,151575,04/04/2024,10323941,TC,,3566179,299494286,PI,1363.74
INSERTED DETAIL,UKSPF Capital - Albert Street Hoarding,UKC11,Capital Contract Payments,5000,22951.9,VPS (UK) Ltd,151672,11/04/2024,10323780,TC,,4028962,100196072,PI,27542.28
INSERTED DETAIL,WSU Depot,WDP00,Personal Protective Clothing,340,983.7,SMI Group UK,151681,04/04/2024,10323222,TC,,7644080,217124496,PI,1180.46
INSERTED DETAIL,WSU Depot,WDP00,Personal Protective Clothing,340,715.57,SMI Group UK,151681,04/04/2024,10323317,TC,,7644080,217124496,PI,858.69
INSERTED DETAIL,WSU Depot,WDP00,Personal Protective Clothing,340,888.44,SMI Group UK,151681,04/04/2024,10323893,TC,,7644080,217124496,PI,1066.13
INSERTED DETAIL,WSU Depot,WDP00,Personal Protective Clothing,340,1295.41,SMI Group UK,151681,11/04/2024,10324246,TC,,7644080,217124496,PI,1554.5
INSERTED DETAIL,CAST - Private Sector Leasing,CAS03,Private Sector Leasing Scheme Properties,148,2430,Carol Scott,151718,04/04/2024,10323856,TC,,,,PN,2430
INSERTED DETAIL,Human Resources Centralised Services,RES31,Recruitment Expenses,12,3235,Growth Hub Business Solutions,151836,04/04/2024,10323408,TC,,10369498,66928359,PI,3882
INSERTED DETAIL,Human Resources Centralised Services,RES31,Recruitment Expenses,12,7670,Growth Hub Business Solutions,151836,18/04/2024,10324353,TC,,10369498,66928359,PI,9204
INSERTED DETAIL,Human Resources Centralised Services,RES31,Recruitment Expenses,12,1675,Growth Hub Business Solutions,151836,18/04/2024,10324354,TC,,10369498,66928359,PI,2010
INSERTED DETAIL,Street Furniture,HIG01,External Contractor & Operator,742,1500,Personal Redacted Data,151849,25/04/2024,10324519,CS,,,261652215,PN,1800
INSERTED DETAIL,Street Cleansing General,STC00,Materials,303,1339,Hammonds Hygiene Solutions Ltd,152004,25/04/2024,10324605,TC,,6143231,770138146,PI,1606.8
INSERTED DETAIL,CAST - Private Sector Leasing,CAS03,Private Sector Leasing Scheme Properties,148,2310,Narottam Mistry,152057,11/04/2024,10324201,TC,,,,PN,2310
INSERTED DETAIL,Nightly Paid Self Contained Accommodation,CAS07,Nightly Self Contained Accommodation,149,2325,Centennial Property T/A The Housing Network,152075,11/04/2024,10324171,TC,,8861768,,PI,2790
INSERTED DETAIL,Nightly Paid Self Contained Accommodation,CAS07,Nightly Self Contained Accommodation,149,2175,Centennial Property T/A The Housing Network,152075,18/04/2024,10324324,TC,,8861768,,PI,2610
INSERTED DETAIL,AGM Exhibitions/Outreach,AGM02,External Contractor & Operator,742,500,Jamie Boots Wildlife Art,152083,04/04/2024,10323976,TC,,,,PI,500
INSERTED DETAIL,Planning General/Income,PLN00,Agency Staff,3,1154.52,Bloom Procurement Services Ltd,152189,04/04/2024,10323722,TC,,8045123,322673120,PI,1385.42
INSERTED DETAIL,Planning General/Income,PLN00,Agency Staff,3,1149.12,Bloom Procurement Services Ltd,152189,04/04/2024,10323915,TC,,8045123,322673120,PI,1378.94
INSERTED DETAIL,Transformation Change Unit,TCU00,Consultancy Costs,740,6930,Bloom Procurement Services Ltd,152189,11/04/2024,10324044,TC,,8045123,322673120,PI,8316
INSERTED DETAIL,Planning General/Income,PLN00,Agency Staff,3,766.08,Bloom Procurement Services Ltd,152189,18/04/2024,10324424,TC,,8045123,322673120,PI,919.3
INSERTED DETAIL,Planning General/Income,PLN00,Agency Staff,3,1163.52,Bloom Procurement Services Ltd,152189,18/04/2024,10324452,TC,,8045123,322673120,PI,1396.22
INSERTED DETAIL,Planning General/Income,PLN00,Agency Staff,3,1542.96,Bloom Procurement Services Ltd,152189,25/04/2024,10324597,TC,,8045123,322673120,PI,1851.55
INSERTED DETAIL,ICT Renewal Programme,CMP00,IT Capital Expenditure,5025,980,ET Works Ltd,152271,04/04/2024,10323891,TC,,3746274,724721250,PI,1176
INSERTED DETAIL,ITC & Support Services,CIS10,Software Maintenance,374,1375,ET Works Ltd,152271,11/04/2024,10324196,TC,,3746274,724721250,PI,1650
INSERTED DETAIL,ICT refresh programme - Infrastructure,CMP01,IT Capital Expenditure,5025,33003.86,ET Works Ltd,152271,11/04/2024,10324277,TC,,3746274,724721250,PI,39604.63
INSERTED DETAIL,Economic Development & Town Centre,EDT00,External Legal Costs,741,6288.6,Pinsent Masons LLP,152281,04/04/2024,10323752,TC,,OC333653,25463034,PI,7546.32
INSERTED DETAIL,Garage,WVR00,Materials,303,459,Contel Ltd,152328,04/04/2024,10323327,TC,,10871572,272901895,PI,550.8
INSERTED DETAIL,Garage,WVR00,Materials,303,459,Contel Ltd,152328,11/04/2024,10324177,TC,,10871572,272901895,PI,550.8
INSERTED DETAIL,Garage,WVR00,Materials,303,459,Contel Ltd,152328,18/04/2024,10324321,TC,,10871572,272901895,PI,550.8
INSERTED DETAIL,Garage,WVR00,Tyres,205,430.51,Mr Tyre Ltd,152340,04/04/2024,10323362,TC,,2602575,580302567,PI,516.61
INSERTED DETAIL,The Benn Hall,BHL00,Events Tickets - Zero Rated,1405,5816.88,Soul Street Productions LTD,152402,25/04/2024,10324539,NT,,,,PN,5816.88
INSERTED DETAIL,Human Resources Centralised Services,RES31,Employee wellbeing/Other employee expenses,21,3401.85,Washington House Occupational Health Ltd,152478,04/04/2024,10323946,TC,,7576248,113264844,PN,3482.35
INSERTED DETAIL,Human Resources Centralised Services,RES31,Employee wellbeing/Other employee expenses,21,3414.58,Washington House Occupational Health Ltd,152478,25/04/2024,10324573,TC,,7576248,113264844,PN,3472.08
INSERTED DETAIL,Unplanned Maintenance and Repair,UMR00,Training fees,11,885,Jetchem Systems Ltd,152529,04/04/2024,10324091,TC,,2636413,560555542,PN,1062
INSERTED DETAIL,Unplanned Maintenance and Repair,UMR00,Contract Hire,220,420,Jetchem Systems Ltd,152529,11/04/2024,10324262,TC,,2636413,560555542,PI,504
INSERTED DETAIL,Car Parks General,CPK01,Maintenance of Equipment,301,1740,Flowbird Smart City UK Ltd,152724,25/04/2024,10324435,TC,,4869035,821077453,PI,2088
INSERTED DETAIL,Domestic Waste Collection/Recycling,REF00,External Contractor & Operator,742,2160,Bulk Freight (Midlands) Ltd,152736,04/04/2024,10323313,TC,,2099724,439397896,PI,2592
INSERTED DETAIL,Domestic Waste Collection/Recycling,REF00,External Contractor & Operator,742,720,Bulk Freight (Midlands) Ltd,152736,04/04/2024,10323355,TC,,2099724,439397896,PI,864
INSERTED DETAIL,Domestic Waste Collection/Recycling,REF00,External Contractor & Operator,742,1800,Bulk Freight (Midlands) Ltd,152736,04/04/2024,10323566,TC,,2099724,439397896,PI,2160
INSERTED DETAIL,Domestic Waste Collection/Recycling,REF00,External Contractor & Operator,742,2340,Bulk Freight (Midlands) Ltd,152736,04/04/2024,10323569,TC,,2099724,439397896,PI,2808
INSERTED DETAIL,Domestic Waste Collection/Recycling,REF00,External Contractor & Operator,742,540,Bulk Freight (Midlands) Ltd,152736,04/04/2024,10323572,TC,,2099724,439397896,PI,648
INSERTED DETAIL,Domestic Waste Collection/Recycling,REF00,External Contractor & Operator,742,2160,Bulk Freight (Midlands) Ltd,152736,04/04/2024,10323574,TC,,2099724,439397896,PI,2592
INSERTED DETAIL,Domestic Waste Collection/Recycling,REF00,External Contractor & Operator,742,1080,Bulk Freight (Midlands) Ltd,152736,04/04/2024,10323575,TC,,2099724,439397896,PI,1296
INSERTED DETAIL,Domestic Waste Collection/Recycling,REF00,External Contractor & Operator,742,2340,Bulk Freight (Midlands) Ltd,152736,04/04/2024,10323576,TC,,2099724,439397896,PI,2808
INSERTED DETAIL,Domestic Waste Collection/Recycling,REF00,External Contractor & Operator,742,1260,Bulk Freight (Midlands) Ltd,152736,04/04/2024,10323587,TC,,2099724,439397896,PI,1512
INSERTED DETAIL,Domestic Waste Collection/Recycling,REF00,External Contractor & Operator,742,2340,Bulk Freight (Midlands) Ltd,152736,04/04/2024,10323589,TC,,2099724,439397896,PI,2808
INSERTED DETAIL,Domestic Waste Collection/Recycling,REF00,External Contractor & Operator,742,1440,Bulk Freight (Midlands) Ltd,152736,04/04/2024,10324090,TC,,2099724,439397896,PN,1728
INSERTED DETAIL,Domestic Waste Collection/Recycling,REF00,External Contractor & Operator,742,2700,Bulk Freight (Midlands) Ltd,152736,11/04/2024,10324167,TC,,2099724,439397896,PI,3240
INSERTED DETAIL,Domestic Waste Collection/Recycling,REF00,External Contractor & Operator,742,2160,Bulk Freight (Midlands) Ltd,152736,25/04/2024,10324429,TC,,2099724,439397896,PI,2592
INSERTED DETAIL,Domestic Waste Collection/Recycling,REF00,External Contractor & Operator,742,2160,Bulk Freight (Midlands) Ltd,152736,25/04/2024,10324430,TC,,2099724,439397896,PI,2592
INSERTED DETAIL,Domestic Waste Collection/Recycling,REF00,External Contractor & Operator,742,540,Bulk Freight (Midlands) Ltd,152736,25/04/2024,10324431,TC,,2099724,439397896,PI,648
INSERTED DETAIL,Domestic Waste Collection/Recycling,REF00,External Contractor & Operator,742,2700,Bulk Freight (Midlands) Ltd,152736,25/04/2024,10324432,TC,,2099724,439397896,PI,3240
INSERTED DETAIL,Domestic Waste Collection/Recycling,REF00,External Contractor & Operator,742,1440,Bulk Freight (Midlands) Ltd,152736,25/04/2024,10324433,TC,,2099724,439397896,PI,1728
INSERTED DETAIL,Domestic Waste Collection/Recycling,REF00,External Contractor & Operator,742,540,Bulk Freight (Midlands) Ltd,152736,25/04/2024,10324438,TC,,2099724,439397896,PI,648
INSERTED DETAIL,Domestic Waste Collection/Recycling,REF00,External Contractor & Operator,742,540,Bulk Freight (Midlands) Ltd,152736,25/04/2024,10324439,TC,,2099724,439397896,PI,540
INSERTED DETAIL,Domestic Waste Collection/Recycling,REF00,External Contractor & Operator,742,2700,Bulk Freight (Midlands) Ltd,152736,25/04/2024,10324670,TC,,2099724,439397896,PI,3240
INSERTED DETAIL,Domestic Waste Collection/Recycling,REF00,External Contractor & Operator,742,2340,Bulk Freight (Midlands) Ltd,152736,25/04/2024,10324671,TC,,2099724,439397896,PI,2808
INSERTED DETAIL,Domestic Waste Collection/Recycling,REF00,External Contractor & Operator,742,3420,Bulk Freight (Midlands) Ltd,152736,25/04/2024,10324672,TC,,2099724,439397896,PI,4104
INSERTED DETAIL,Domestic Waste Collection/Recycling,REF00,External Contractor & Operator,742,720,Bulk Freight (Midlands) Ltd,152736,25/04/2024,10324673,TC,,2099724,439397896,PI,864
INSERTED DETAIL,Supervision and Management General,MAN00,Consultancy Costs,740,1875.85,ARK Consultancy,152820,04/04/2024,10323465,TC,,10179621,618135745,PI,2251.02
INSERTED DETAIL,Supervision and Management General,MAN00,Consultancy Costs,740,3158.25,ARK Consultancy,152820,18/04/2024,10324363,TC,,10179621,618135745,PI,3789.9
INSERTED DETAIL,Mobile telephones,TEL03,Telephone Expenses,371,3138.59,Daisy Communications,152877,25/04/2024,10324188,TC,,4145329,722471355,PN,3766.31
INSERTED DETAIL,ITC & Support Services,CIS10,Hardware Maintenance,376,481.24,Crown Hosting Data Centres,152919,11/04/2024,10323945,TC,,,207000375,PN,577.49
INSERTED DETAIL,ITC & Support Services,CIS10,Hardware Maintenance,376,592.84,Crown Hosting Data Centres,152919,11/04/2024,10324199,TC,,,207000375,PN,711.41
INSERTED DETAIL,Financial Services,RES10,Agency Staff,3,2750,Vivid Resourcing,152923,25/04/2024,10324501,TC,,8067630,182819383,PI,3300
INSERTED DETAIL,Financial Services,RES10,Agency Staff,3,2200,Vivid Resourcing,152923,25/04/2024,10324502,TC,,8067630,182819383,PI,2640
INSERTED DETAIL,Financial Services,RES10,Agency Staff,3,1540,Vivid Resourcing,152923,25/04/2024,10324552,TC,,8067630,182819383,PI,1848
INSERTED DETAIL,Financial Services,RES10,Agency Staff,3,2750,Vivid Resourcing,152923,25/04/2024,10324598,TC,,8067630,182819383,PI,3300
INSERTED DETAIL,CAST - Private Sector Leasing,CAS03,Private Sector Leasing Scheme Properties,148,2115,Mr Des Raj,152952,11/04/2024,10324207,TC,,,,PN,2115
INSERTED DETAIL,ICT Renewal Programme,CMP00,IT Capital Expenditure,5025,1352,Total Computer Networks Ltd,153004,04/04/2024,10323937,TC,,4958126,824507830,PI,1622.4
INSERTED DETAIL,Supervision and Management General,MAN00,Movement Incentives,454,580,JD Removals,153289,18/04/2024,10324181,TC,,,,PI,580
INSERTED DETAIL,Housing Management,MAN22,Estates,457,560,JD Removals,153289,18/04/2024,10324325,TC,,,,PI,560
INSERTED DETAIL,Legal Services,DEM20,Reimbursements - Outside Scope,1107,13897.03,Zurich Insurance Claims Recovery,153291,25/04/2024,10324522,NT,,,,PN,13897.03
INSERTED DETAIL,Digitalisation and Development Programme,CMP47,IT Capital Expenditure,5025,750,Placecube Ltd,153292,11/04/2024,10324121,TC,,9914106,308217522,PI,900
INSERTED DETAIL,ITC & Support Services,CIS10,Training fees,11,6000,Placecube Ltd,153292,25/04/2024,10324349,TC,,9914106,308217522,PI,7200
INSERTED DETAIL,Purchase of Vehicles,VHC00,Capital Contract Payments,5000,33912.37,Farol Ltd,153331,04/04/2024,10323626,TC,,4157398,448588886,PI,40694.84
INSERTED DETAIL,Purchase of Vehicles,VHC00,Capital Contract Payments,5000,26208.71,Farol Ltd,153331,04/04/2024,10323640,TC,,4157398,448588886,PI,31450.45
INSERTED DETAIL,Purchase of Vehicles,VHC00,Capital Contract Payments,5000,5974,Farol Ltd,153331,04/04/2024,10323641,TC,,4157398,448588886,PI,7168.8
INSERTED DETAIL,Purchase of Vehicles,VHC00,Capital Contract Payments,5000,8492.44,Farol Ltd,153331,04/04/2024,10323642,TC,,4157398,448588886,PI,10190.93
INSERTED DETAIL,Purchase of Vehicles,VHC00,Capital Contract Payments,5000,40445.4,Farol Ltd,153331,04/04/2024,10323643,TC,,4157398,448588886,PI,48534.48
INSERTED DETAIL,Corporate Assurance,RES40,Consultancy Costs,740,2600,Robert Walters Operations Ltd,153482,04/04/2024,10323205,TC,,3621607,927577481,PN,3120
INSERTED DETAIL,Corporate Assurance,RES40,Consultancy Costs,740,2600,Robert Walters Operations Ltd,153482,04/04/2024,10323848,TC,,3621607,927577481,PN,3120
INSERTED DETAIL,Corporate Assurance,RES40,Consultancy Costs,740,2600,Robert Walters Operations Ltd,153482,11/04/2024,10323916,TC,,3621607,927577481,PI,3120
INSERTED DETAIL,CAST - Private Sector Leasing,CAS03,Private Sector Leasing Scheme Properties,148,5700,JP Capital,153859,11/04/2024,10324211,TC,,,,PN,5700
INSERTED DETAIL,Biart Place - Capital,BIA00,Capital Contract Payments,5000,8900,RPS Consulting Services Ltd,153907,04/04/2024,10323341,TC,,1470149,362749136,PI,10680
INSERTED DETAIL,Rainsbook Cemetery preparation,BUR06,Capital Contract Payments,5000,7235,RPS Consulting Services Ltd,153907,25/04/2024,10324606,TC,,1470149,362749136,PI,8682
INSERTED DETAIL,Rainsbook Cemetery preparation,BUR06,Capital Contract Payments,5000,7850,RPS Consulting Services Ltd,153907,25/04/2024,10324609,TC,,1470149,362749136,PI,9420
INSERTED DETAIL,Domestic Waste Collection/Recycling,REF00,External Contractor & Operator,742,75975.3,Sherbourne Recyclling Ltd,153920,11/04/2024,10324295,TC,,13227088,38229483,PI,91170.36
INSERTED DETAIL,Domestic Waste Collection/Recycling,REF00,External Contractor & Operator,742,-2865.58,Sherbourne Recyclling Ltd,153920,11/04/2024,10324296,TC,,13227088,38229483,PN,-3438.7
INSERTED DETAIL,Biart Place - Capital,BIA00,Capital Contract Payments,5000,695791.13,Willmott Dixon Construction Ltd,153930,11/04/2024,10324251,CS,,768173,19737796,PI,695791.13
INSERTED DETAIL,Town Centre Events,TWE00,Development Activities,450,3609.38,Yellow Bus Events Ltd,153934,18/04/2024,10324446,TC,,4132850,756091126,PI,4331.26
INSERTED DETAIL,Biart Place - Capital,BIA00,Capital Contract Payments,5000,3000,rg+P Ltd,153953,04/04/2024,10323938,TC,,3837194,747400832,PI,3600
INSERTED DETAIL,Biart Place - Capital,BIA00,Capital Contract Payments,5000,2800,rg+P Ltd,153953,11/04/2024,10324041,TC,,3837194,747400832,PI,3360
INSERTED DETAIL,Town Hall,OFF00,Building cleaning,170,846.58,Tenon FM Ltd,154001,11/04/2024,10323849,TC,,2176652,539208921,PN,1015.9
INSERTED DETAIL,Homelessness Social Enterprise (funded by WCC),CAS14,Other Miscellaneous Expenses,444,2700,Beam Up Ltd,154011,11/04/2024,10323960,TC,,10637337,325653502,PI,3240
INSERTED DETAIL,Domestic Waste Collection/Recycling,REF00,Training fees,11,365.82,Traxion Ltd,154052,11/04/2024,10324170,TC,,9340854,304594116,PI,719.96
INSERTED DETAIL,Household Green Waste Collections,REF06,Training fees,11,104.16,Traxion Ltd,154052,11/04/2024,10324170,TC,,9340854,304594116,PI,719.96
INSERTED DETAIL,Street Cleansing General,STC00,Training fees,11,156.24,Traxion Ltd,154052,11/04/2024,10324170,TC,,9340854,304594116,PI,719.96
INSERTED DETAIL,The Benn Hall,BHL00,Purchases for Resale,305,742.5,Goodibox,154148,04/04/2024,10323731,TC,,,,PI,742.5
INSERTED DETAIL,Unplanned Maintenance and Repair,UMR00,Vehicle Running Costs,201,185,Alma Valeting,154189,22/04/2024,10324525,TC,,,,PN,685
INSERTED DETAIL,Unplanned Maintenance and Repair,UMR00,External Contractor & Operator,742,500,Alma Valeting,154189,22/04/2024,10324525,TC,,,,PN,685
INSERTED DETAIL,Housing Advice & Benefits Team,CAS00,Private Sector Leasing Scheme Properties,148,2226,Mrs Alison Mary Lynch,154226,25/04/2024,10324418,TC,,,,PN,2226
INSERTED DETAIL,The Benn Hall,BHL00,Purchases for Resale,305,2297.34,Sky Wines Ltd,154269,25/04/2024,10323679,TC,,7626958,367281867,PI,2756.81
INSERTED DETAIL,The Benn Hall,BHL00,Purchases for Resale,305,1512.17,Sky Wines Ltd,154269,04/04/2024,10323735,TC,,7626958,367281867,PI,1814.6
INSERTED DETAIL,The Benn Hall,BHL00,Purchases for Resale,305,1077.64,Sky Wines Ltd,154269,04/04/2024,10323927,TC,,7626958,367281867,PI,1293.17
INSERTED DETAIL,The Benn Hall,BHL00,Purchases for Resale,305,1583.39,Sky Wines Ltd,154269,18/04/2024,10324389,TC,,7626958,367281867,PI,1900.07
INSERTED DETAIL,The Benn Hall,BHL00,Purchases for Resale,305,722.58,Sky Wines Ltd,154269,18/04/2024,10324441,TC,,7626958,367281867,PI,867.1
INSERTED DETAIL,Central Business Support Services,CSS15,Subscriptions,421,1835.32,The Copyright Licensing Agency Ltd,154277,11/04/2024,10324245,TC,,1690026,386463025,PI,2202.38
INSERTED DETAIL,Garage,WVR00,Vehicle Fuel,204,42022.7,BWOC LTD,154293,11/04/2024,10323648,TC,,3256076,681335336,PI,50427.24
INSERTED DETAIL,Garage,WVR00,Vehicle Fuel,204,567,BWOC LTD,154293,11/04/2024,10324144,TC,,3256076,681335336,PN,680.4
INSERTED DETAIL,Garage,WVR00,Vehicle Fuel,204,567,BWOC LTD,154293,18/04/2024,10324457,TC,,3256076,681335336,PI,680.4
INSERTED DETAIL,Crime and Disorder Activities,CAD00,Development Activities,450,1400,Mediation & Community Support,154309,25/04/2024,10324427,TC,,,5531882,PI,1400
INSERTED DETAIL,Town Centre Events,TWE00,Development Activities,450,12520,Open Air Film and Chill Ltd,154319,25/04/2024,10324625,TC,,10546067,300564838,PI,15024
INSERTED DETAIL,Human Resources,RES30,External Legal Costs,741,2921,Trowers & Hamlims LLP,154391,18/04/2024,10324329,TC,,OC337852,440655069,PI,3505.2
INSERTED DETAIL,Economic Development & Town Centre,EDT00,Consultancy Costs,740,2300,Node,154392,11/04/2024,10323620,TC,,,,PI,2760
INSERTED DETAIL,Economic Development & Town Centre,EDT00,Consultancy Costs,740,420,Node,154392,04/04/2024,10323673,TC,,,,PN,504
INSERTED DETAIL,Housing Management System,HCE08,Capital Contract Payments,5000,8000,4ward Thinking Ltd,154401,25/04/2024,10324040,TC,,7425285,350674989,PI,9600
INSERTED DETAIL,Carbon Management Plan (HRA),LCF02,Capital Contract Payments,5000,91415.69,E.ON Energy Solutions Ltd,154420,04/04/2024,10323820,TC,,3407430,559097889,PI,91415.69
INSERTED DETAIL,Carbon Management Plan (HRA),LCF02,Capital Contract Payments,5000,91415.69,E.ON Energy Solutions Ltd,154420,04/04/2024,10323821,TC,,3407430,559097889,PI,91415.69
INSERTED DETAIL,Carbon Management Plan (HRA),LCF02,Capital Contract Payments,5000,249184.06,E.ON Energy Solutions Ltd,154420,18/04/2024,10324486,TC,,3407430,559097889,PN,249184.06
INSERTED DETAIL,Purchase of Vehicles,VHC00,Capital Contract Payments,5000,1394,Motus Group UK T/A Motus Truck & Van,154470,04/04/2024,10323721,TC,,653665,880984866,PI,1672.8
INSERTED DETAIL,Town Centre Events,TWE00,Publicity & Marketing,377,9000,Starlite Outdoor Ltd,154480,11/04/2024,10324178,TC,,,,PI,10800
INSERTED DETAIL,Town Centre Events,TWE00,Publicity & Marketing,377,600,Starlite Outdoor Ltd,154480,11/04/2024,10324180,TC,,,,PI,720
INSERTED DETAIL,Human Resources Centralised Services,RES31,Training fees,11,1110,Cardiac Health,154521,04/04/2024,10324021,TC,,,,PI,1110
INSERTED DETAIL,Human Resources Centralised Services,RES31,Training fees,11,1110,Cardiac Health,154521,18/04/2024,10324459,TC,,,,PI,1110
INSERTED DETAIL,The Benn Hall,BHL00,R&M External Contractors,100,551,Semper Security,154547,04/04/2024,10323740,TC,,13891546,,PI,661.2
INSERTED DETAIL,Biart Place - Capital,BIA00,Capital Contract Payments,5000,-1500,Intali Ltd,154606,15/07/2023,10317627,TC,,4539536,802904257,PN,-1800
INSERTED DETAIL,Grounds Maintenance,PKS20,Contract Hire,220,795,Helpful Hire T/A Turfleet Hire,154819,11/04/2024,10324024,TC,,793419,194 5295 29,PI,954
INSERTED DETAIL,Hackney Carriages,HKC00,Subscriptions,421,2000,TAMESIDE MBC,154827,11/04/2024,10324016,TC,,,149193544,PI,2000
INSERTED DETAIL,Control Centre (HRA),CCE00,Telephone Expenses,371,3473.85,Enovation,154830,04/04/2024,10323943,TC,,4253883,790563507,PN,4168.62
INSERTED DETAIL,Grounds Maintenance,PKS20,Training fees,11,2008,Central England Training Ltd,154862,25/04/2024,10323695,TC,,13545927,401359921,PI,2409.6
INSERTED DETAIL,"Communications, Consultation and Information Team",BTR20,Publicity & Marketing,377,499,Comms Creatives,154908,25/04/2024,10323939,TC,,9056166,329 1960 85,PI,598.8
INSERTED DETAIL,Automated Repairs System,ARS00,Capital Contract Payments,5000,8620.5,Totalmobile Ltd,154918,11/04/2024,10323678,TC,,NI018486,815044947,PI,10344.6
INSERTED DETAIL,Automated Repairs System,ARS00,Capital Contract Payments,5000,16380,Totalmobile Ltd,154918,11/04/2024,10324159,TC,,NI018486,815044947,PN,19656
INSERTED DETAIL,Automated Repairs System,ARS00,Capital Contract Payments,5000,808.5,Totalmobile Ltd,154918,11/04/2024,10324191,TC,,NI018486,815044947,PN,970.2
INSERTED DETAIL,ITC & Support Services,CIS10,Consultancy Costs,740,12000,ITMaaS Ltd,154940,04/04/2024,10323935,TC,,12464269,344 2266 15,PI,14400
INSERTED DETAIL,UKSPF Revenue- Small Business Support,UKA09,Grants to Individuals,721,6030,Teapot Flowers,154967,22/02/2024,10323244,TC,,,,PN,6030
INSERTED DETAIL,WSU Depot,WDP00,External Contractor & Operator,742,6086,Hi-Lite Contracting Ltd,154991,04/04/2024,10323900,CS,,12369422,434 5083 07,PI,7303.2
INSERTED DETAIL,Street Furniture,HIG01,External Contractor & Operator,742,1425,Hi-Lite Contracting Ltd,154991,04/04/2024,10323901,CS,,12369422,434 5083 07,PI,2910
INSERTED DETAIL,Highways,HIG20,External Contractor & Operator,742,1000,Hi-Lite Contracting Ltd,154991,04/04/2024,10323901,CS,,12369422,434 5083 07,PI,2910
INSERTED DETAIL,Planning General/Income,PLN00,External Legal Costs,741,2500,James Findlay Cornerstone Barristers,155013,04/04/2024,10324120,TC,,,GB440429079,PI,3000
INSERTED DETAIL,General Financial Services,GFS00,External Audit Fees,748,39110,Azets Audit Services Limited,155014,19/04/2024,10324398,TC,,9652677,219 0608 22,PI,46932
INSERTED DETAIL,Housing Advice & Benefits Team,CAS00,Agency Staff,3,4237.69,OPUS People Solutions Ltd,155016,11/04/2024,10323998,TC,,10894663,342 0679 12,PN,30895.39
INSERTED DETAIL,Council Tax and NNDR Collection,CTX01,Agency Staff,3,3375.23,OPUS People Solutions Ltd,155016,11/04/2024,10323998,TC,,10894663,342 0679 12,PN,30895.39
INSERTED DETAIL,Democratic Services,DEM10,Agency Staff,3,2310.67,OPUS People Solutions Ltd,155016,11/04/2024,10323998,TC,,10894663,342 0679 12,PN,30895.39
INSERTED DETAIL,Housing Management,MAN22,Agency Staff,3,2819.59,OPUS People Solutions Ltd,155016,11/04/2024,10323998,TC,,10894663,342 0679 12,PN,30895.39
INSERTED DETAIL,Grounds Maintenance,PKS20,Agency Staff,3,4978.91,OPUS People Solutions Ltd,155016,11/04/2024,10323998,TC,,10894663,342 0679 12,PN,30895.39
INSERTED DETAIL,Domestic Waste Collection/Recycling,REF00,Agency Staff,3,7164.43,OPUS People Solutions Ltd,155016,11/04/2024,10323998,TC,,10894663,342 0679 12,PN,30895.39
INSERTED DETAIL,Transformation Change Unit,TCU00,Agency Staff,3,859.64,OPUS People Solutions Ltd,155016,11/04/2024,10323998,TC,,10894663,342 0679 12,PN,30895.39
INSERTED DETAIL,Democratic Services,DEM10,Agency Staff,3,621.18,OPUS People Solutions Ltd,155016,11/04/2024,10324156,TC,,10894663,342 0679 12,PN,3509.27
INSERTED DETAIL,Housing Management,MAN22,Agency Staff,3,591.6,OPUS People Solutions Ltd,155016,11/04/2024,10324156,TC,,10894663,342 0679 12,PN,3509.27
INSERTED DETAIL,Grounds Maintenance,PKS20,Agency Staff,3,624.32,OPUS People Solutions Ltd,155016,11/04/2024,10324156,TC,,10894663,342 0679 12,PN,3509.27
INSERTED DETAIL,Domestic Waste Collection/Recycling,REF00,Agency Staff,3,325.44,OPUS People Solutions Ltd,155016,11/04/2024,10324156,TC,,10894663,342 0679 12,PN,3509.27
INSERTED DETAIL,Transformation Change Unit,TCU00,Agency Staff,3,761.85,OPUS People Solutions Ltd,155016,11/04/2024,10324156,TC,,10894663,342 0679 12,PN,3509.27
INSERTED DETAIL,Housing Advice & Benefits Team,CAS00,Agency Staff,3,2942.27,OPUS People Solutions Ltd,155016,25/04/2024,10324157,TC,,10894663,342 0679 12,PN,27167.38
INSERTED DETAIL,Control Centre (HRA),CCE00,Agency Staff,3,1166.95,OPUS People Solutions Ltd,155016,25/04/2024,10324157,TC,,10894663,342 0679 12,PN,27167.38
INSERTED DETAIL,Council Tax and NNDR Collection,CTX01,Agency Staff,3,740.08,OPUS People Solutions Ltd,155016,25/04/2024,10324157,TC,,10894663,342 0679 12,PN,27167.38
INSERTED DETAIL,Democratic Services,DEM10,Agency Staff,3,1274.58,OPUS People Solutions Ltd,155016,25/04/2024,10324157,TC,,10894663,342 0679 12,PN,27167.38
INSERTED DETAIL,Housing Management,MAN22,Agency Staff,3,3496.93,OPUS People Solutions Ltd,155016,25/04/2024,10324157,TC,,10894663,342 0679 12,PN,27167.38
INSERTED DETAIL,Grounds Maintenance,PKS20,Agency Staff,3,1520,OPUS People Solutions Ltd,155016,25/04/2024,10324157,TC,,10894663,342 0679 12,PN,27167.38
INSERTED DETAIL,Domestic Waste Collection/Recycling,REF00,Agency Staff,3,11153.12,OPUS People Solutions Ltd,155016,25/04/2024,10324157,TC,,10894663,342 0679 12,PN,27167.38
INSERTED DETAIL,Regulatory Services,REG00,Agency Staff,3,345.55,OPUS People Solutions Ltd,155016,25/04/2024,10324157,TC,,10894663,342 0679 12,PN,27167.38
INSERTED DETAIL,Housing Advice & Benefits Team,CAS00,Agency Staff,3,3595.85,OPUS People Solutions Ltd,155016,25/04/2024,10324402,TC,,10894663,342 0679 12,PN,25056.92
INSERTED DETAIL,Control Centre (HRA),CCE00,Agency Staff,3,651.75,OPUS People Solutions Ltd,155016,25/04/2024,10324402,TC,,10894663,342 0679 12,PN,25056.92
INSERTED DETAIL,Council Tax and NNDR Collection,CTX01,Agency Staff,3,1809.16,OPUS People Solutions Ltd,155016,25/04/2024,10324402,TC,,10894663,342 0679 12,PN,25056.92
INSERTED DETAIL,Democratic Services,DEM10,Agency Staff,3,749.36,OPUS People Solutions Ltd,155016,25/04/2024,10324402,TC,,10894663,342 0679 12,PN,25056.92
INSERTED DETAIL,Housing Management,MAN22,Agency Staff,3,3818.17,OPUS People Solutions Ltd,155016,25/04/2024,10324402,TC,,10894663,342 0679 12,PN,25056.92
INSERTED DETAIL,Grounds Maintenance,PKS20,Agency Staff,3,858.45,OPUS People Solutions Ltd,155016,25/04/2024,10324402,TC,,10894663,342 0679 12,PN,25056.92
INSERTED DETAIL,Domestic Waste Collection/Recycling,REF00,Agency Staff,3,7790.37,OPUS People Solutions Ltd,155016,25/04/2024,10324402,TC,,10894663,342 0679 12,PN,25056.92
INSERTED DETAIL,Regulatory Services,REG00,Agency Staff,3,1105.76,OPUS People Solutions Ltd,155016,25/04/2024,10324402,TC,,10894663,342 0679 12,PN,25056.92
INSERTED DETAIL,Unplanned Maintenance and Repair,UMR00,Agency Staff,3,501.91,OPUS People Solutions Ltd,155016,25/04/2024,10324402,TC,,10894663,342 0679 12,PN,25056.92
INSERTED DETAIL,Housing Advice & Benefits Team,CAS00,Agency Staff,3,3019.07,OPUS People Solutions Ltd,155016,25/04/2024,10324403,TC,,10894663,342 0679 12,PN,30255.5
INSERTED DETAIL,Control Centre (HRA),CCE00,Agency Staff,3,612.65,OPUS People Solutions Ltd,155016,25/04/2024,10324403,TC,,10894663,342 0679 12,PN,30255.5
INSERTED DETAIL,Council Tax and NNDR Collection,CTX01,Agency Staff,3,4475.64,OPUS People Solutions Ltd,155016,25/04/2024,10324403,TC,,10894663,342 0679 12,PN,30255.5
INSERTED DETAIL,Democratic Services,DEM10,Agency Staff,3,1842.62,OPUS People Solutions Ltd,155016,25/04/2024,10324403,TC,,10894663,342 0679 12,PN,30255.5
INSERTED DETAIL,Housing Management,MAN22,Agency Staff,3,2553.41,OPUS People Solutions Ltd,155016,25/04/2024,10324403,TC,,10894663,342 0679 12,PN,30255.5
INSERTED DETAIL,Grounds Maintenance,PKS20,Agency Staff,3,1502.27,OPUS People Solutions Ltd,155016,25/04/2024,10324403,TC,,10894663,342 0679 12,PN,30255.5
INSERTED DETAIL,Domestic Waste Collection/Recycling,REF00,Agency Staff,3,9488.37,OPUS People Solutions Ltd,155016,25/04/2024,10324403,TC,,10894663,342 0679 12,PN,30255.5
INSERTED DETAIL,Regulatory Services,REG00,Agency Staff,3,1036.65,OPUS People Solutions Ltd,155016,25/04/2024,10324403,TC,,10894663,342 0679 12,PN,30255.5
INSERTED DETAIL,Transformation Change Unit,TCU00,Agency Staff,3,682.25,OPUS People Solutions Ltd,155016,25/04/2024,10324403,TC,,10894663,342 0679 12,PN,30255.5
INSERTED DETAIL,Housing Advice & Benefits Team,CAS00,Agency Staff,3,7565.73,OPUS People Solutions Ltd,155016,25/04/2024,10324558,TC,,10894663,342 0679 12,PN,37382.56
INSERTED DETAIL,Control Centre (HRA),CCE00,Agency Staff,3,1034.83,OPUS People Solutions Ltd,155016,25/04/2024,10324558,TC,,10894663,342 0679 12,PN,37382.56
INSERTED DETAIL,Council Tax and NNDR Collection,CTX01,Agency Staff,3,2959.58,OPUS People Solutions Ltd,155016,25/04/2024,10324558,TC,,10894663,342 0679 12,PN,37382.56
INSERTED DETAIL,Democratic Services,DEM10,Agency Staff,3,2379.69,OPUS People Solutions Ltd,155016,25/04/2024,10324558,TC,,10894663,342 0679 12,PN,37382.56
INSERTED DETAIL,Development Strategy,ECD00,Agency Staff,3,1374.34,OPUS People Solutions Ltd,155016,25/04/2024,10324558,TC,,10894663,342 0679 12,PN,37382.56
INSERTED DETAIL,Housing Management,MAN22,Agency Staff,3,2808.21,OPUS People Solutions Ltd,155016,25/04/2024,10324558,TC,,10894663,342 0679 12,PN,37382.56
INSERTED DETAIL,Grounds Maintenance,PKS20,Agency Staff,3,2828.95,OPUS People Solutions Ltd,155016,25/04/2024,10324558,TC,,10894663,342 0679 12,PN,37382.56
INSERTED DETAIL,Planning General/Income,PLN00,Agency Staff,3,2046.47,OPUS People Solutions Ltd,155016,25/04/2024,10324558,TC,,10894663,342 0679 12,PN,37382.56
INSERTED DETAIL,Domestic Waste Collection/Recycling,REF00,Agency Staff,3,7772.27,OPUS People Solutions Ltd,155016,25/04/2024,10324558,TC,,10894663,342 0679 12,PN,37382.56
INSERTED DETAIL,Transformation Change Unit,TCU00,Agency Staff,3,382.06,OPUS People Solutions Ltd,155016,25/04/2024,10324558,TC,,10894663,342 0679 12,PN,37382.56
INSERTED DETAIL,Executive Director,SMT00,Consultancy Costs,740,6593,Sustainability West Midlands,155030,18/04/2024,10323980,TC,,4390508,926673592,PI,7911.6
INSERTED DETAIL,WSU Depot,WDP00,Furniture,302,1334.75,AJ Products (UK),155031,04/04/2024,10323602,TC,,3762591,744836114,PI,1601.7
INSERTED DETAIL,WSU Depot,WDP00,Furniture,302,2767.35,AJ Products (UK),155031,04/04/2024,10323603,TC,,3762591,744836114,PI,3320.82
INSERTED DETAIL,Garage,WVR00,Tools,304,682.87,Rehobot Ltd,155032,25/04/2024,10323830,TC,,2867485,655033942,PI,819.44
INSERTED DETAIL,ITC & Support Services,CIS10,Software Maintenance,374,4000,Predatech Limited,155091,04/04/2024,10323907,TC,,,,PI,4800
INSERTED DETAIL,Street Cleansing General,STC00,Materials,303,2381.08,Hiab Limited,155093,04/04/2024,10323917,TC,,,GB945684087,PI,2857.3
INSERTED DETAIL,AGM Conservation/Documentation,AGM01,Public Transport and Car Parking,230,73.85,Museum Conservation Services Ltd,155094,25/04/2024,10324510,TC,,,637 0026 65,PI,688.62
INSERTED DETAIL,AGM Conservation/Documentation,AGM01,Consultancy Costs,740,500,Museum Conservation Services Ltd,155094,25/04/2024,10324510,TC,,,637 0026 65,PI,688.62
INSERTED DETAIL,ICT refresh programme - AV equipment,CMP38,IT Capital Expenditure,5025,1647.92,01direct LTD,155102,11/04/2024,10323630,TC,,8294893,157105230,PI,1977.5
INSERTED DETAIL,ICT refresh programme - AV equipment,CMP38,IT Capital Expenditure,5025,617.97,01direct LTD,155102,11/04/2024,10323633,TC,,8294893,157105230,PI,741.56
INSERTED DETAIL,ICT refresh programme - AV equipment,CMP38,IT Capital Expenditure,5025,15214.93,01direct LTD,155102,11/04/2024,10323634,TC,,8294893,157105230,PI,18257.92
INSERTED DETAIL,Highways,HIG20,Training fees,11,1562.82,HGV Training Services Ltd,155106,04/04/2024,10323904,TC,,9820295,329272394,PI,1875.38
INSERTED DETAIL,Purchase of Vehicles,VHC00,Capital Contract Payments,5000,48992,Euro Commercials (South Wales) Limited,155151,25/04/2024,10324648,TC,,1459115,329015083,PI,58790.4
INSERTED DETAIL,Purchase of Vehicles,VHC00,Capital Contract Payments,5000,450,Euro Commercials (South Wales) Limited,155151,25/04/2024,10324649,TC,,1459115,329015083,PI,540
INSERTED DETAIL,"Communications, Consultation and Information Team",BTR20,Publicity & Marketing,377,3725,Surf & Turf Instant Shelters Ltd,155160,18/04/2024,10324477,TC,,5877935,GB944399579,PI,4470
INSERTED DETAIL,AGM Exhibitions/Outreach,AGM02,Other Miscellaneous Expenses,444,500,Personal Redacted Data,155174,11/04/2024,10323964,NT,,,,PN,500
INSERTED DETAIL,Balance Sheet,BS,Non-Conditional Revenue Grants,9885,500,Personal Redacted Data,155175,04/04/2024,10324109,NT,,,,PN,500
INSERTED DETAIL,The Benn Hall,BHL00,Events Tickets - Zero Rated,1405,1248,Amethyst Magic,155176,11/04/2024,10324110,TC,,,,PN,1248
INSERTED DETAIL,The Benn Hall,BHL00,Events Tickets - Zero Rated,1405,2800.7,Personal Redacted Data,155177,11/04/2024,10324111,TC,,,,PN,2800.7
INSERTED DETAIL,Balance Sheet,BS,Non-Conditional Revenue Grants,9885,500,Personal Redacted Data,155178,04/04/2024,10324114,NT,,,,PN,500
INSERTED DETAIL,Balance Sheet,BS,Non-Conditional Revenue Grants,9885,500,Personal Redacted Data,155179,04/04/2024,10324115,NT,,,,PN,500
INSERTED DETAIL,UKSPF Revenue- Small Business Support,UKA09,Grants to Individuals,721,3482,Wellingtons Day Nurseries,155180,11/04/2024,10324192,NT,,,,PN,3482
INSERTED DETAIL,The Benn Hall,BHL00,Events Tickets - Zero Rated,1405,2140,HOP Consultancy,155188,25/04/2024,10324500,TC,,,,PN,2140
INSERTED DETAIL,Homelessness Prevention,CAS06,Removals and Storage Fees,464,780,AD Keebles Removals & Storage,155189,25/04/2024,10324546,TC,,,695282396,PN,936
detail,Homelessness Prevention,CAS06,Removals and Storage Fees,464,936,AD Keebles Removals & Storage,155189,25/04/2024,10324547,TC,,,695282396,PN,936
,Highways,HIG20,Materials,303,549.75,Buildersbuddy,,16/04/2024,58203,,,,,CC,
,UKSPF Capital - Caldecott Park Accessibility Improvements,UKC10,Consultancy Costs,740,2166.67,Royal British Legion,,16/04/2024,58203,,,,,CC,
,Rough Sleeper Initiative,CAS10,New Equipment,300,802.49,Amazon,,16/04/2024,58238,,,,,CC,
,Unplanned Maintenance and Repair,UMR00,Staff Overnight,422,8000,AWH Sols ,,08/04/2024,58094,,,,,GL,
,The Benn Hall,BHL00,Payment Card Costs,445,1124.37,Global Payments ,,17/04/2024,58183,,,,,GL,
,Maintenance of Customer Services Systems,CIS21,Software Maintenance,374,921.31,Bottomline ,,22/04/2024,58206,,,,,GL,
,Purchase of Council House,PUR00,Capital Contract Payments,5000,17720,HMRC ,,24/04/2024,58224,,,,,GL,
,Balance Sheet,BS,Payroll Contra Feeder,9250,1118.56,Personal Redacted Data,,25/04/2024,58233,,,,,GL,
,Maintenance of Customer Services Systems,CIS21,Software Maintenance,374,10984.72,Access Suite ,,26/04/2024,58235,,,,,GL,
,General Financial Services,GFS00,Subscriptions,421,12239.53,LCG ,,18/04/2024,58237,,,,,GL,
,Balance Sheet,BS,Collection Fund,9476,1455143,Cov & Warks Pooling ,,29/04/2024,58240,,,,,GL,
,Balance Sheet,BS,Collection Fund,9476,540048,Wcc County Fund ,,29/04/2024,58240,,,,,GL,
,Balance Sheet,BS,Collection Fund,9476,2614704,DHLUC ,,30/04/2024,58245,,,,,GL,
